[Event "*** Titled Tuesday Blitz"]
[Site "Chess.com"]
[Date "2020.02.04"]
[Round "1"]
[White "vugarrasulov"]
[Black "Region_07"]
[Result "1-0"]
[WhiteElo "2923"]
[BlackElo "2483"]
[TimeControl "180+2"]
[EndTime "13:05:03 PST"]
[Termination "vugarrasulov won by resignation"]

1. e4 {[%clk 0:03:01.9]} 1... Nc6 {[%clk 0:02:54.6]} 2. Nf3 {[%clk 0:03:01.9]}
2... d6 {[%clk 0:02:54.9]} 3. d4 {[%clk 0:03:01.9]} 3... Nf6 {[%clk 0:02:54.3]}
4. Nc3 {[%clk 0:03:02.3]} 4... g6 {[%clk 0:02:54.6]} 5. h3 {[%clk 0:02:59.8]}
5... Bg7 {[%clk 0:02:55.5]} 6. Be3 {[%clk 0:03:01.3]} 6... O-O {[%clk
0:02:56.3]} 7. Qd2 {[%clk 0:03:02.4]} 7... e5 {[%clk 0:02:57.3]} 8. O-O-O {[%clk
0:02:52.2]} 8... Nd7 {[%clk 0:02:34.6]} 9. Bg5 {[%clk 0:02:46.8]} 9... f6 {[%clk
0:02:31.6]} 10. Be3 {[%clk 0:02:47.1]} 10... a6 {[%clk 0:02:22.1]} 11. Bc4+
{[%clk 0:02:44.6]} 11... Kh8 {[%clk 0:02:22.3]} 12. h4 {[%clk 0:02:46.5]} 12...
Nb6 {[%clk 0:02:12.1]} 13. Bb3 {[%clk 0:02:46.9]} 13... Bg4 {[%clk 0:02:13.5]}
14. h5 {[%clk 0:02:41.9]} 14... gxh5 {[%clk 0:02:01.2]} 15. Ne2 {[%clk
0:02:41.9]} 15... f5 {[%clk 0:01:50.9]} 16. exf5 {[%clk 0:02:36.3]} 16... Rxf5
{[%clk 0:01:41.6]} 17. Nh4 {[%clk 0:02:22.7]} 17... Rf8 {[%clk 0:01:34.6]} 18.
f3 {[%clk 0:02:23.5]} 18... Bd7 {[%clk 0:01:33.9]} 19. g4 {[%clk 0:02:19.3]}
19... d5 {[%clk 0:01:19.7]} 20. gxh5 {[%clk 0:02:10.1]} 20... exd4 {[%clk
0:01:10.2]} 21. Nxd4 {[%clk 0:02:08.6]} 21... Qf6 {[%clk 0:01:10.9]} 22. h6
{[%clk 0:02:03.7]} 1-0

[Event "*** Titled Tuesday Blitz"]
[Site "Chess.com"]
[Date "2020.02.04"]
[Round "1"]
[White "johnathan113"]
[Black "cottage_cheese"]
[Result "1-0"]
[WhiteElo "2615"]
[BlackElo "2256"]
[TimeControl "180+2"]
[EndTime "13:05:04 PST"]
[Termination "johnathan113 won by resignation"]

1. e4 {[%clk 0:03:00.5]} 1... e5 {[%clk 0:03:00.4]} 2. Nf3 {[%clk 0:03:01.5]}
2... Nc6 {[%clk 0:03:01.1]} 3. d4 {[%clk 0:03:03.2]} 3... exd4 {[%clk
0:03:01.6]} 4. Nxd4 {[%clk 0:03:05.1]} 4... Bc5 {[%clk 0:02:59.4]} 5. Nb3 {[%clk
0:03:06.2]} 5... Bb6 {[%clk 0:02:57.8]} 6. Nc3 {[%clk 0:03:07.5]} 6... Nf6
{[%clk 0:02:57.2]} 7. Qe2 {[%clk 0:03:08.6]} 7... O-O {[%clk 0:02:45.3]} 8. Bg5
{[%clk 0:03:09.4]} 8... h6 {[%clk 0:02:45.6]} 9. Bh4 {[%clk 0:03:09.5]} 9... a5
{[%clk 0:02:18.4]} 10. a4 {[%clk 0:03:08.6]} 10... Nd4 {[%clk 0:01:16.1]} 11.
Qd3 {[%clk 0:03:09]} 11... Nxb3 {[%clk 0:01:13]} 12. cxb3 {[%clk 0:03:10.9]}
12... Qe7 {[%clk 0:00:58.2]} 13. O-O-O {[%clk 0:03:08.4]} 13... Re8 {[%clk
0:00:47.6]} 14. f4 {[%clk 0:02:40.4]} 14... d6 {[%clk 0:00:44.4]} 15. Be2 {[%clk
0:02:31.8]} 15... Qe6 {[%clk 0:00:37.8]} 16. Bf3 {[%clk 0:02:26.9]} 16... Nd7
{[%clk 0:00:26.2]} 17. Nd5 {[%clk 0:02:20.9]} 17... Bc5 {[%clk 0:00:19.9]} 18.
Nxc7 {[%clk 0:02:17.4]} 1-0

[Event "*** Titled Tuesday Blitz"]
[Site "Chess.com"]
[Date "2020.02.04"]
[Round "1"]
[White "mortngabriel"]
[Black "Raspadsistema"]
[Result "0-1"]
[WhiteElo "2425"]
[BlackElo "2806"]
[TimeControl "180+2"]
[EndTime "13:05:17 PST"]
[Termination "Raspadsistema won by checkmate"]

1. d4 {[%clk 0:02:58.9]} 1... d6 {[%clk 0:03:01.4]} 2. e4 {[%clk 0:02:59.1]}
2... Nf6 {[%clk 0:03:02.6]} 3. Nc3 {[%clk 0:03:00.7]} 3... e5 {[%clk 0:03:04]}
4. Nge2 {[%clk 0:03:02.2]} 4... Nbd7 {[%clk 0:03:05]} 5. h3 {[%clk 0:03:01.3]}
5... h5 {[%clk 0:03:06.4]} 6. g3 {[%clk 0:03:02.1]} 6... Be7 {[%clk 0:03:07.4]}
7. Bg2 {[%clk 0:03:03.6]} 7... c6 {[%clk 0:03:08.2]} 8. a4 {[%clk 0:03:03.4]}
8... b6 {[%clk 0:03:09.2]} 9. O-O {[%clk 0:03:03.9]} 9... O-O {[%clk 0:03:10.5]}
10. Be3 {[%clk 0:02:53.9]} 10... a6 {[%clk 0:03:11.7]} 11. f4 {[%clk 0:02:53.8]}
11... Bb7 {[%clk 0:03:12.9]} 12. Kh2 {[%clk 0:02:41.8]} 12... Qc7 {[%clk
0:03:14]} 13. Rg1 {[%clk 0:02:41.2]} 13... Rfe8 {[%clk 0:03:14.6]} 14. Bf3
{[%clk 0:02:39]} 14... Bf8 {[%clk 0:03:09.7]} 15. g4 {[%clk 0:01:57.2]} 15...
hxg4 {[%clk 0:03:08.7]} 16. hxg4 {[%clk 0:01:59.1]} 16... exd4 {[%clk
0:03:09.6]} 17. Nxd4 {[%clk 0:01:51.4]} 17... c5 {[%clk 0:03:10.9]} 18. Nf5
{[%clk 0:01:31.3]} 18... Nxe4 {[%clk 0:03:12.1]} 19. Nxe4 {[%clk 0:01:21.2]}
19... Bxe4 {[%clk 0:03:14]} 20. Bxe4 {[%clk 0:01:19.6]} 20... Rxe4 {[%clk
0:03:15.9]} 21. Qf3 {[%clk 0:01:18.7]} 21... Rae8 {[%clk 0:03:08.4]} 22. Rae1
{[%clk 0:01:14.4]} 22... d5 {[%clk 0:03:06.5]} 23. Ng3 {[%clk 0:01:08.8]} 23...
R4e6 {[%clk 0:03:00.3]} 24. f5 {[%clk 0:01:02.6]} 24... Ne5 {[%clk 0:02:54.1]}
25. Qf4 {[%clk 0:00:49.4]} 25... Nxg4+ {[%clk 0:02:55.2]} 26. Qxg4 {[%clk
0:00:51.3]} 26... Rxe3 {[%clk 0:02:56.9]} 27. Rxe3 {[%clk 0:00:50.9]} 27... Rxe3
{[%clk 0:02:58.8]} 28. Kh1 {[%clk 0:00:40.9]} 28... d4 {[%clk 0:02:47.7]} 29.
Nh5 {[%clk 0:00:39.2]} 29... Qc6+ {[%clk 0:02:39.4]} 30. Rg2 {[%clk 0:00:35.6]}
30... Re1+ {[%clk 0:02:39.4]} 31. Kh2 {[%clk 0:00:36.3]} 31... Bd6+ {[%clk
0:02:40.9]} 32. Kh3 {[%clk 0:00:32]} 32... Rh1+ {[%clk 0:02:41.6]} 33. Rh2
{[%clk 0:00:30.9]} 33... Rxh2# {[%clk 0:02:43.1]} 0-1

[Event "*** Titled Tuesday Blitz"]
[Site "Chess.com"]
[Date "2020.02.04"]
[Round "1"]
[White "allvim"]
[Black "MatthewG-p4p"]
[Result "0-1"]
[WhiteElo "2428"]
[BlackElo "2814"]
[TimeControl "180+2"]
[EndTime "13:05:20 PST"]
[Termination "MatthewG-p4p won by resignation"]

1. d4 {[%clk 0:03:00.1]} 1... Nf6 {[%clk 0:02:58.6]} 2. c4 {[%clk 0:03:01.3]}
2... c5 {[%clk 0:02:48.5]} 3. d5 {[%clk 0:03:02.3]} 3... e6 {[%clk 0:02:40.9]}
4. Nc3 {[%clk 0:03:03.4]} 4... exd5 {[%clk 0:02:41.5]} 5. cxd5 {[%clk
0:03:05.3]} 5... d6 {[%clk 0:02:43.4]} 6. Nf3 {[%clk 0:03:05.7]} 6... g6 {[%clk
0:02:44.8]} 7. h3 {[%clk 0:03:06.8]} 7... Bg7 {[%clk 0:02:46.1]} 8. Bf4 {[%clk
0:03:08.4]} 8... O-O {[%clk 0:02:47.5]} 9. e3 {[%clk 0:03:09.9]} 9... Na6 {[%clk
0:02:46.9]} 10. Bc4 {[%clk 0:03:03.2]} 10... Nc7 {[%clk 0:02:47.3]} 11. O-O
{[%clk 0:03:01.3]} 11... b6 {[%clk 0:02:48.2]} 12. Re1 {[%clk 0:02:52.5]} 12...
a6 {[%clk 0:02:46.8]} 13. a4 {[%clk 0:02:53.4]} 13... Rb8 {[%clk 0:02:47.2]} 14.
Qe2 {[%clk 0:02:39.6]} 14... Re8 {[%clk 0:02:47]} 15. Rad1 {[%clk 0:02:38.7]}
15... Ne4 {[%clk 0:02:46.8]} 16. Nxe4 {[%clk 0:02:35.7]} 16... Rxe4 {[%clk
0:02:48.7]} 17. Nd2 {[%clk 0:02:26.1]} 17... Re8 {[%clk 0:02:49.3]} 18. b3
{[%clk 0:02:21.4]} 18... b5 {[%clk 0:02:49.7]} 19. axb5 {[%clk 0:02:22.4]} 19...
axb5 {[%clk 0:02:51.6]} 20. Bd3 {[%clk 0:02:21.6]} 20... Nxd5 {[%clk 0:02:52.8]}
21. Bg3 {[%clk 0:02:18.5]} 21... Nc3 {[%clk 0:02:53.4]} 22. Qf1 {[%clk 0:02:07]}
22... Nxd1 {[%clk 0:02:52.4]} 23. Rxd1 {[%clk 0:02:08.3]} 23... Qb6 {[%clk
0:02:16.8]} 24. Be4 {[%clk 0:01:58.6]} 24... Bb7 {[%clk 0:02:13.9]} 25. Bxb7
{[%clk 0:01:58.6]} 25... Rxb7 {[%clk 0:02:15.8]} 26. Qd3 {[%clk 0:01:53.4]}
26... Qc6 {[%clk 0:02:13.3]} 27. Nf3 {[%clk 0:01:31.2]} 27... c4 {[%clk
0:02:08.5]} 28. bxc4 {[%clk 0:01:28.8]} 28... bxc4 {[%clk 0:02:10.4]} 29. Qxd6
{[%clk 0:01:21.6]} 29... Qxd6 {[%clk 0:02:11.3]} 30. Rxd6 {[%clk 0:01:22.4]}
30... Rc8 {[%clk 0:02:12.9]} 31. Rd1 {[%clk 0:01:17]} 31... c3 {[%clk
0:02:13.7]} 32. Kf1 {[%clk 0:00:59.6]} 32... c2 {[%clk 0:02:14.6]} 0-1

[Event "*** Titled Tuesday Blitz"]
[Site "Chess.com"]
[Date "2020.02.04"]
[Round "1"]
[White "Rud_Makarian"]
[Black "davigator"]
[Result "1-0"]
[WhiteElo "2612"]
[BlackElo "2259"]
[TimeControl "180+2"]
[EndTime "13:05:29 PST"]
[Termination "Rud_Makarian won by checkmate"]

1. e4 {[%clk 0:03:01.9]} 1... c5 {[%clk 0:02:58.9]} 2. Nf3 {[%clk 0:03:03.1]}
2... Nc6 {[%clk 0:02:59.2]} 3. Bb5 {[%clk 0:03:04.3]} 3... g6 {[%clk 0:02:59.4]}
4. O-O {[%clk 0:03:02.9]} 4... Bg7 {[%clk 0:02:59.4]} 5. Re1 {[%clk 0:03:04.2]}
5... Nf6 {[%clk 0:02:59.6]} 6. e5 {[%clk 0:03:03.3]} 6... Nd5 {[%clk 0:03:00.1]}
7. Nc3 {[%clk 0:03:05.2]} 7... Nc7 {[%clk 0:03:00.7]} 8. Bxc6 {[%clk 0:03:06.6]}
8... dxc6 {[%clk 0:03:02.3]} 9. d3 {[%clk 0:03:07.6]} 9... O-O {[%clk
0:03:01.9]} 10. h3 {[%clk 0:03:07.7]} 10... h6 {[%clk 0:03:02.1]} 11. b3 {[%clk
0:03:08.2]} 11... b6 {[%clk 0:03:01.6]} 12. Bb2 {[%clk 0:03:09.3]} 12... Ne6
{[%clk 0:03:02.7]} 13. Ne4 {[%clk 0:03:10.4]} 13... a5 {[%clk 0:03:01.8]} 14. a4
{[%clk 0:03:10.1]} 14... Qd5 {[%clk 0:03:00.9]} 15. c4 {[%clk 0:03:07.5]} 15...
Qd7 {[%clk 0:03:00.7]} 16. Qd2 {[%clk 0:03:06.9]} 16... Bb7 {[%clk 0:03:00.5]}
17. Rad1 {[%clk 0:03:07.9]} 17... Rad8 {[%clk 0:03:00.9]} 18. Qe3 {[%clk
0:03:09.2]} 18... Qc8 {[%clk 0:03:00.7]} 19. Nh2 {[%clk 0:03:06.8]} 19... Nd4
{[%clk 0:02:53.2]} 20. Bxd4 {[%clk 0:03:06.8]} 20... Rxd4 {[%clk 0:02:52.1]} 21.
f4 {[%clk 0:03:06.5]} 21... Qe6 {[%clk 0:02:46.7]} 22. Nf3 {[%clk 0:03:02]}
22... Rdd8 {[%clk 0:02:46]} 23. g3 {[%clk 0:03:01.8]} 23... Qxh3 {[%clk
0:02:42.2]} 24. Kf2 {[%clk 0:03:02.7]} 24... Qf5 {[%clk 0:02:31.7]} 25. Rg1
{[%clk 0:03:00.8]} 25... h5 {[%clk 0:02:26.7]} 26. Rg2 {[%clk 0:02:58.9]} 26...
Bc8 {[%clk 0:02:26.5]} 27. Rdg1 {[%clk 0:02:58.7]} 27... Qd7 {[%clk 0:02:25.5]}
28. Ke2 {[%clk 0:02:57.9]} 28... Qg4 {[%clk 0:02:23.2]} 29. Nf2 {[%clk
0:02:55.5]} 29... Qd7 {[%clk 0:02:22.3]} 30. g4 {[%clk 0:02:56.2]} 30... hxg4
{[%clk 0:02:17.6]} 31. Nxg4 {[%clk 0:02:54.7]} 31... Qc7 {[%clk 0:02:15.9]} 32.
f5 {[%clk 0:02:37]} 32... Bxf5 {[%clk 0:02:15.5]} 33. Nh6+ {[%clk 0:02:37.2]}
33... Bxh6 {[%clk 0:02:05.7]} 34. Qxh6 {[%clk 0:02:39.1]} 34... Bxd3+ {[%clk
0:02:04.7]} 35. Kf2 {[%clk 0:02:34.5]} 35... Bf5 {[%clk 0:01:06.4]} 36. Rh2
{[%clk 0:02:28.6]} 36... Rd2+ {[%clk 0:01:02.7]} 37. Nxd2 {[%clk 0:02:27.9]}
37... Qxe5 {[%clk 0:00:56.9]} 38. Qh7# {[%clk 0:02:28.8]} 1-0

[Event "*** Titled Tuesday Blitz"]
[Site "Chess.com"]
[Date "2020.02.04"]
[Round "1"]
[White "DonPreuss"]
[Black "BeanScreen"]
[Result "1/2-1/2"]
[WhiteElo "2211"]
[BlackElo "2560"]
[TimeControl "180+2"]
[EndTime "13:05:32 PST"]
[Termination "Game drawn by agreement"]

1. e4 {[%clk 0:02:55.9]} 1... e5 {[%clk 0:03:00.8]} 2. Nf3 {[%clk 0:02:56.2]}
2... Nc6 {[%clk 0:03:02.3]} 3. Bb5 {[%clk 0:02:55.7]} 3... a6 {[%clk 0:03:03.6]}
4. Bxc6 {[%clk 0:02:56.2]} 4... dxc6 {[%clk 0:03:05.1]} 5. O-O {[%clk
0:02:56.7]} 5... Qd6 {[%clk 0:03:05.9]} 6. d4 {[%clk 0:02:57.3]} 6... exd4
{[%clk 0:03:07]} 7. Qxd4 {[%clk 0:02:58.2]} 7... Qxd4 {[%clk 0:03:07.9]} 8. Nxd4
{[%clk 0:02:58.6]} 8... Bd7 {[%clk 0:03:09.8]} 9. Nc3 {[%clk 0:02:53.5]} 9...
O-O-O {[%clk 0:03:10.4]} 10. Nb3 {[%clk 0:02:45.6]} 10... Nf6 {[%clk 0:02:54.6]}
11. f3 {[%clk 0:02:43.3]} 11... c5 {[%clk 0:02:40.4]} 12. Be3 {[%clk 0:02:41.8]}
12... b6 {[%clk 0:02:39.8]} 13. a4 {[%clk 0:02:35.4]} 13... a5 {[%clk
0:02:38.5]} 14. Rad1 {[%clk 0:02:26]} 14... Bd6 {[%clk 0:02:27.7]} 15. Nd2
{[%clk 0:02:14.2]} 15... Rhe8 {[%clk 0:02:25.7]} 16. Nc4 {[%clk 0:02:11.5]}
16... Be6 {[%clk 0:01:47.8]} 17. Nxd6+ {[%clk 0:01:55.3]} 17... cxd6 {[%clk
0:01:48.8]} 18. Bg5 {[%clk 0:01:35.2]} 18... Kb7 {[%clk 0:01:33.4]} 19. Bxf6
{[%clk 0:01:31.1]} 19... gxf6 {[%clk 0:01:35.3]} 20. Nd5 {[%clk 0:01:32.2]}
20... Bxd5 {[%clk 0:01:35.6]} 21. Rxd5 {[%clk 0:01:33]} 21... Re5 {[%clk
0:01:35.4]} 22. Rfd1 {[%clk 0:01:31.1]} 22... Kc6 {[%clk 0:01:36.2]} 23. c4
{[%clk 0:01:04.9]} 23... Rd7 {[%clk 0:01:32.9]} 24. g4 {[%clk 0:01:04.4]} 24...
Rd8 {[%clk 0:01:32.5]} 25. Kf2 {[%clk 0:01:05.1]} 25... Rd7 {[%clk 0:01:28]}
1/2-1/2

[Event "*** Titled Tuesday Blitz"]
[Site "Chess.com"]
[Date "2020.02.04"]
[Round "1"]
[White "hypert"]
[Black "iturrizaga"]
[Result "0-1"]
[WhiteElo "2470"]
[BlackElo "2873"]
[TimeControl "180+2"]
[EndTime "13:05:35 PST"]
[Termination "iturrizaga won by resignation"]

1. e4 {[%clk 0:03:01.9]} 1... c5 {[%clk 0:03:00.1]} 2. Nf3 {[%clk 0:03:02.5]}
2... e6 {[%clk 0:03:01.4]} 3. d4 {[%clk 0:03:02.9]} 3... cxd4 {[%clk 0:03:03.3]}
4. Nxd4 {[%clk 0:03:04.6]} 4... a6 {[%clk 0:03:05.2]} 5. Nc3 {[%clk 0:03:04.9]}
5... Qc7 {[%clk 0:03:05]} 6. Bd3 {[%clk 0:03:06.1]} 6... g6 {[%clk 0:03:03]} 7.
O-O {[%clk 0:03:05.3]} 7... Bg7 {[%clk 0:03:04.5]} 8. Nb3 {[%clk 0:03:06.8]}
8... Nc6 {[%clk 0:03:04.5]} 9. f4 {[%clk 0:03:05]} 9... Nge7 {[%clk 0:03:00.7]}
10. Kh1 {[%clk 0:03:03.8]} 10... f5 {[%clk 0:02:57.2]} 11. e5 {[%clk 0:03:03]}
11... O-O {[%clk 0:02:49.5]} 12. a4 {[%clk 0:03:03.5]} 12... b6 {[%clk
0:02:48.1]} 13. Qe2 {[%clk 0:03:02.2]} 13... Bb7 {[%clk 0:02:48]} 14. Be3 {[%clk
0:03:01.2]} 14... Nb4 {[%clk 0:02:45.1]} 15. a5 {[%clk 0:02:48.3]} 15... bxa5
{[%clk 0:02:17.2]} 16. Nxa5 {[%clk 0:02:47.3]} 16... Nxd3 {[%clk 0:02:13.7]} 17.
Qxd3 {[%clk 0:02:38]} 17... Bd5 {[%clk 0:02:12.9]} 18. Nxd5 {[%clk 0:02:29.6]}
18... Nxd5 {[%clk 0:02:14.8]} 19. c4 {[%clk 0:02:28.3]} 19... Nb4 {[%clk
0:01:58.6]} 20. Qd2 {[%clk 0:02:21.3]} 20... Rab8 {[%clk 0:01:59.1]} 21. Rfd1
{[%clk 0:02:15.7]} 21... Rfd8 {[%clk 0:02:00.2]} 22. Qd6 {[%clk 0:02:06.7]}
22... Qxd6 {[%clk 0:01:57.4]} 23. Rxd6 {[%clk 0:02:07.2]} 23... Nc2 {[%clk
0:01:57.5]} 24. Rb1 {[%clk 0:00:41.4]} 24... Nxe3 {[%clk 0:01:56.4]} 25. Rxa6
{[%clk 0:00:41.5]} 25... Bf8 {[%clk 0:01:54.3]} 0-1

[Event "*** Titled Tuesday Blitz"]
[Site "Chess.com"]
[Date "2020.02.04"]
[Round "1"]
[White "MateSchmate"]
[Black "MITerryble"]
[Result "0-1"]
[WhiteElo "2496"]
[BlackElo "2949"]
[TimeControl "180+2"]
[EndTime "13:05:37 PST"]
[Termination "MITerryble won by resignation"]

1. e4 {[%clk 0:03:01.6]} 1... e6 {[%clk 0:03:00.7]} 2. d4 {[%clk 0:03:02.3]}
2... d5 {[%clk 0:03:02]} 3. Bd3 {[%clk 0:03:03.6]} 3... dxe4 {[%clk 0:03:02.8]}
4. Bxe4 {[%clk 0:03:05.5]} 4... Nf6 {[%clk 0:03:04.7]} 5. Bf3 {[%clk 0:03:06.8]}
5... Nbd7 {[%clk 0:03:06.5]} 6. Ne2 {[%clk 0:03:07.2]} 6... e5 {[%clk
0:03:08.1]} 7. O-O {[%clk 0:03:06.4]} 7... Bd6 {[%clk 0:03:08.3]} 8. Nbc3 {[%clk
0:03:05.4]} 8... O-O {[%clk 0:03:09.1]} 9. Bg5 {[%clk 0:03:02.5]} 9... h6 {[%clk
0:03:09.3]} 10. Bh4 {[%clk 0:03:02.6]} 10... Re8 {[%clk 0:03:10.6]} 11. Bxf6
{[%clk 0:02:47.7]} 11... Nxf6 {[%clk 0:03:10.8]} 12. dxe5 {[%clk 0:02:47.9]}
12... Bxe5 {[%clk 0:03:12.7]} 13. Qxd8 {[%clk 0:02:47]} 13... Rxd8 {[%clk
0:03:14.6]} 14. Rad1 {[%clk 0:02:48.5]} 14... Re8 {[%clk 0:03:15.9]} 15. Nd4
{[%clk 0:02:46.1]} 15... c6 {[%clk 0:03:16.8]} 16. Rfe1 {[%clk 0:02:45.5]} 16...
Bd7 {[%clk 0:03:17.8]} 17. Nb3 {[%clk 0:02:45.9]} 17... Bxc3 {[%clk 0:03:16.2]}
18. bxc3 {[%clk 0:02:47.8]} 18... Rxe1+ {[%clk 0:03:15.5]} 19. Rxe1 {[%clk
0:02:48.8]} 19... Re8 {[%clk 0:03:16.6]} 20. Rd1 {[%clk 0:02:48.6]} 20... Bc8
{[%clk 0:03:17.1]} 21. Kf1 {[%clk 0:02:48.3]} 21... Kf8 {[%clk 0:03:18.1]} 22.
h3 {[%clk 0:02:49.4]} 22... Ke7 {[%clk 0:03:13.2]} 23. Na5 {[%clk 0:02:47.1]}
23... Rd8 {[%clk 0:03:08.8]} 24. Re1+ {[%clk 0:02:46.8]} 24... Kd6 {[%clk
0:03:06.1]} 25. Nc4+ {[%clk 0:02:47.7]} 25... Kc7 {[%clk 0:03:05.7]} 26. Re7+
{[%clk 0:02:45.9]} 26... Rd7 {[%clk 0:03:06.9]} 27. Rxd7+ {[%clk 0:02:47.4]}
27... Bxd7 {[%clk 0:03:08.8]} 28. Ne5 {[%clk 0:02:44.5]} 28... Be6 {[%clk
0:03:10]} 29. a3 {[%clk 0:02:45.7]} 29... Kd6 {[%clk 0:03:10.3]} 30. Nd3 {[%clk
0:02:46.8]} 30... Nd7 {[%clk 0:03:07.6]} 31. Ke2 {[%clk 0:02:45.8]} 31... Nb6
{[%clk 0:03:09]} 32. Nb2 {[%clk 0:02:44]} 32... Kc5 {[%clk 0:03:07.5]} 33. Kd3
{[%clk 0:02:43.4]} 33... Kb5 {[%clk 0:03:08.8]} 34. Kd4 {[%clk 0:02:42.2]} 34...
Ka5 {[%clk 0:03:06.7]} 35. c4 {[%clk 0:02:34.6]} 35... f6 {[%clk 0:03:02.5]} 36.
c5 {[%clk 0:02:08.8]} 36... Nd7 {[%clk 0:02:54.9]} 37. Nd3 {[%clk 0:02:06.7]}
37... Ka4 {[%clk 0:02:54.7]} 38. c4 {[%clk 0:02:00.5]} 38... Kxa3 {[%clk
0:02:54.9]} 39. Kc3 {[%clk 0:02:02]} 39... Ne5 {[%clk 0:02:54]} 40. Nf4 {[%clk
0:01:58.7]} 40... Bf7 {[%clk 0:02:53.6]} 41. Be2 {[%clk 0:01:59.4]} 41... g5
{[%clk 0:02:54.4]} 42. Nd3 {[%clk 0:01:57.4]} 42... Nxc4 {[%clk 0:02:53.6]} 43.
Nb4 {[%clk 0:01:55.6]} 43... Ne5 {[%clk 0:02:52.5]} 44. Bd1 {[%clk 0:01:53.9]}
44... Bg6 {[%clk 0:02:49.6]} 45. Bb3 {[%clk 0:01:53.4]} 45... Nd7 {[%clk
0:02:48.1]} 46. Na2 {[%clk 0:01:48.7]} 46... Nxc5 {[%clk 0:02:47.9]} 47. Bg8
{[%clk 0:01:48.5]} 47... a5 {[%clk 0:02:48.1]} 48. g3 {[%clk 0:01:46.1]} 48...
b5 {[%clk 0:02:49]} 49. f3 {[%clk 0:01:47.5]} 49... b4+ {[%clk 0:02:50.3]} 50.
Kd2 {[%clk 0:01:49]} 50... Nb3+ {[%clk 0:02:48.4]} 51. Bxb3 {[%clk 0:01:39.9]}
51... Kxb3 {[%clk 0:02:50.3]} 52. Nc1+ {[%clk 0:01:41.8]} 52... Kb2 {[%clk
0:02:51.2]} 53. Nd3+ {[%clk 0:01:40.9]} 53... Bxd3 {[%clk 0:02:51.6]} 0-1

[Event "*** Titled Tuesday Blitz"]
[Site "Chess.com"]
[Date "2020.02.04"]
[Round "1"]
[White "LogoCzar"]
[Black "RU_B9"]
[Result "1-0"]
[WhiteElo "2516"]
[BlackElo "1775"]
[TimeControl "180+2"]
[EndTime "13:05:39 PST"]
[Termination "LogoCzar won on time"]

1. e4 {[%clk 0:03:01.9]} 1... c5 {[%clk 0:03:00.5]} 2. Nf3 {[%clk 0:03:02.6]}
2... g6 {[%clk 0:03:00]} 3. d4 {[%clk 0:03:02.9]} 3... cxd4 {[%clk 0:03:01.9]}
4. Qxd4 {[%clk 0:03:03.7]} 4... Nf6 {[%clk 0:03:02.4]} 5. e5 {[%clk 0:03:04.1]}
5... Nc6 {[%clk 0:03:03.4]} 6. Qa4 {[%clk 0:03:04.4]} 6... Nd5 {[%clk
0:03:02.2]} 7. Qe4 {[%clk 0:03:05.4]} 7... Nb6 {[%clk 0:02:53.1]} 8. Nc3 {[%clk
0:03:05.1]} 8... d5 {[%clk 0:02:44.9]} 9. exd6 {[%clk 0:03:05.2]} 9... Bf5
{[%clk 0:02:44.8]} 10. Qe2 {[%clk 0:03:03.1]} 10... Bg7 {[%clk 0:02:24]} 11. Bf4
{[%clk 0:02:59.5]} 11... O-O {[%clk 0:02:14.4]} 12. O-O-O {[%clk 0:02:56.5]}
12... exd6 {[%clk 0:02:14.5]} 13. Rxd6 {[%clk 0:02:51.5]} 13... Qc8 {[%clk
0:02:05.9]} 14. Qd2 {[%clk 0:02:50]} 14... Nb4 {[%clk 0:01:51.4]} 15. Nd4 {[%clk
0:02:32.6]} 15... Bxd4 {[%clk 0:00:19.8]} 16. Qxd4 {[%clk 0:02:25.3]} 16... Nxc2
{[%clk 0:00:20.5]} 17. Qf6 {[%clk 0:02:21.3]} 17... Re8 {[%clk 0:00:11]} 18. Bh6
{[%clk 0:01:57.7]} 18... Re1+ {[%clk 0:00:09.6]} 19. Kd2 {[%clk 0:01:57.9]} 1-0

[Event "*** Titled Tuesday Blitz"]
[Site "Chess.com"]
[Date "2020.02.04"]
[Round "1"]
[White "JonahWillow"]
[Black "Der_Honigdachs"]
[Result "1-0"]
[WhiteElo "2752"]
[BlackElo "2403"]
[TimeControl "180+2"]
[EndTime "13:05:41 PST"]
[Termination "JonahWillow won by resignation"]

1. e4 {[%clk 0:03:01]} 1... e5 {[%clk 0:03:00.2]} 2. Nf3 {[%clk 0:02:58.9]} 2...
Nc6 {[%clk 0:02:59.8]} 3. Nc3 {[%clk 0:02:59.3]} 3... Nf6 {[%clk 0:02:58.7]} 4.
Bb5 {[%clk 0:02:55.2]} 4... Bc5 {[%clk 0:02:56.2]} 5. O-O {[%clk 0:02:51.8]}
5... d6 {[%clk 0:02:56.5]} 6. d4 {[%clk 0:02:50.8]} 6... exd4 {[%clk 0:02:56.9]}
7. Nxd4 {[%clk 0:02:51.2]} 7... Bd7 {[%clk 0:02:58.2]} 8. Bxc6 {[%clk
0:02:45.8]} 8... bxc6 {[%clk 0:03:00]} 9. Bg5 {[%clk 0:02:46.9]} 9... h6 {[%clk
0:03:00.1]} 10. Bh4 {[%clk 0:02:44]} 10... g5 {[%clk 0:02:59.5]} 11. Bg3 {[%clk
0:02:44.6]} 11... Qe7 {[%clk 0:02:53.2]} 12. Re1 {[%clk 0:02:36.1]} 12... Ng4
{[%clk 0:02:53.1]} 13. Nf5 {[%clk 0:02:04.6]} 13... Bxf5 {[%clk 0:02:47.8]} 14.
exf5 {[%clk 0:02:06.5]} 14... Ne5 {[%clk 0:02:49.2]} 15. Ne4 {[%clk 0:01:44.2]}
15... Bb6 {[%clk 0:02:47]} 16. c4 {[%clk 0:01:40.7]} 16... O-O-O {[%clk
0:02:46.4]} 17. Qa4 {[%clk 0:01:35.2]} 17... Kb7 {[%clk 0:02:44.3]} 18. b4
{[%clk 0:01:07.4]} 18... f6 {[%clk 0:02:35.6]} 19. Rab1 {[%clk 0:01:00.2]} 19...
Rhe8 {[%clk 0:02:23.9]} 20. c5 {[%clk 0:01:00]} 20... dxc5 {[%clk 0:02:12.5]}
21. bxc5 {[%clk 0:01:01.9]} 21... Nd3 {[%clk 0:01:40.5]} 22. cxb6 {[%clk
0:00:56.2]} 22... Nxe1 {[%clk 0:01:36.3]} 23. bxa7+ {[%clk 0:00:48.1]} 1-0

[Event "*** Titled Tuesday Blitz"]
[Site "Chess.com"]
[Date "2020.02.04"]
[Round "1"]
[White "rasmussvane"]
[Black "masterofpuppets2"]
[Result "1-0"]
[WhiteElo "2870"]
[BlackElo "2469"]
[TimeControl "180+2"]
[EndTime "13:05:45 PST"]
[Termination "rasmussvane won by resignation"]

1. Nf3 {[%clk 0:03:01.1]} 1... d5 {[%clk 0:02:57]} 2. g3 {[%clk 0:03:01.5]} 2...
Nd7 {[%clk 0:02:57.6]} 3. d4 {[%clk 0:02:59.9]} 3... Ngf6 {[%clk 0:02:57.9]} 4.
c4 {[%clk 0:02:55.3]} 4... e6 {[%clk 0:02:58.1]} 5. Bg2 {[%clk 0:02:55.3]} 5...
dxc4 {[%clk 0:02:54.8]} 6. O-O {[%clk 0:02:55.8]} 6... a6 {[%clk 0:02:47.2]} 7.
a4 {[%clk 0:02:33.8]} 7... Rb8 {[%clk 0:02:44.2]} 8. a5 {[%clk 0:02:34.3]} 8...
b5 {[%clk 0:02:44.5]} 9. axb6 {[%clk 0:02:36.2]} 9... cxb6 {[%clk 0:02:44.9]}
10. Bf4 {[%clk 0:02:30.9]} 10... Rb7 {[%clk 0:02:29.6]} 11. Rxa6 {[%clk
0:02:29.9]} 11... Nd5 {[%clk 0:02:25.5]} 12. Ra8 {[%clk 0:02:07.1]} 12... b5
{[%clk 0:02:14.2]} 13. Nc3 {[%clk 0:01:56.1]} 13... N7f6 {[%clk 0:02:08.4]} 14.
Nxb5 {[%clk 0:01:33.6]} 14... Be7 {[%clk 0:01:37.2]} 15. Na7 {[%clk 0:01:10.6]}
15... Rxa7 {[%clk 0:01:31.6]} 16. Rxa7 {[%clk 0:01:10.4]} 16... O-O {[%clk
0:01:32.7]} 17. Ne5 {[%clk 0:01:07.9]} 17... Qb6 {[%clk 0:01:30.7]} 18. Ra1
{[%clk 0:00:54.9]} 18... c3 {[%clk 0:01:21.6]} 19. bxc3 {[%clk 0:00:49.1]} 19...
Nxc3 {[%clk 0:01:21.5]} 20. Qd3 {[%clk 0:00:49.2]} 20... Qxd4 {[%clk 0:01:21]}
21. Nc6 {[%clk 0:00:50.5]} 1-0